Cost Item Category,Cost Item Sub Category (where applicable),Type of Cost Item,Sources of Cost / Pricing Data,Format of Cost Data,Year of  Data,Update Factor,Updated Cost (2000$),Notes/Assumptions
F. Other Land Treatment / Storage / Containment,1. Land Treatment,"1.1 On-Site, Non-Hazardous","Memo: Hazardous Waste Identification Rule for Process Wastes: Waste Management Cost Data (Sept. 27, 1996)","1,000 tons/yr: $98.52/ton",1995,1.138,"1,000 tons/yr: $112.12/ton","Note: Annualized cost based on a 20 year operating life assuming a 7% interest rate.  See 1996 reference if you wish to add costs for site access controls, run-on/run-off controls, dust suppression measures, monitoring, or final cover. These costs add between $30.12/ton and $2.05/ton."
F. Other Land Treatment / Storage / Containment,1. Land Treatment,"1.1 On-Site, Non-Hazardous","Memo: Hazardous Waste Identification Rule for Process Wastes: Waste Management Cost Data (Sept. 27, 1996)","5,000 tons/yr: $24.67/ton",1995,1.138,"5,000 tons/yr: $28.07/ton","Note: Annualized cost based on a 20 year operating life assuming a 7% interest rate.  See 1996 reference if you wish to add costs for site access controls, run-on/run-off controls, dust suppression measures, monitoring, or final cover. These costs add between $30.12/ton and $2.05/ton."
F. Other Land Treatment / Storage / Containment,1. Land Treatment,"1.1 On-Site, Non-Hazardous","Memo: Hazardous Waste Identification Rule for Process Wastes: Waste Management Cost Data (Sept. 27, 1996)","10,000 tons/yr: $15.44/ton",1995,1.138,"10,000 tons/yr: $17.57/ton","Note: Annualized cost based on a 20 year operating life assuming a 7% interest rate.  See 1996 reference if you wish to add costs for site access controls, run-on/run-off controls, dust suppression measures, monitoring, or final cover. These costs add between $30.12/ton and $2.05/ton."
F. Other Land Treatment / Storage / Containment,1. Land Treatment,"1.1 On-Site, Non-Hazardous","Memo: Hazardous Waste Identification Rule for Process Wastes: Waste Management Cost Data (Sept. 27, 1996)","25,000 tons/yr: $9.90/ton",1995,1.138,"25,000 tons/yr: $11.27/ton","Note: Annualized cost based on a 20 year operating life assuming a 7% interest rate.  See 1996 reference if you wish to add costs for site access controls, run-on/run-off controls, dust suppression measures, monitoring, or final cover. These costs add between $30.12/ton and $2.05/ton."
F. Other Land Treatment / Storage / Containment,1. Land Treatment,"1.1 On-Site, Non-Hazardous","Memo: Hazardous Waste Identification Rule for Process Wastes: Waste Management Cost Data (Sept. 27, 1996)","50,000 tons/yr: $8.05/ton",1995,1.138,"50,000 tons/yr: $9.16/ton","Note: Annualized cost based on a 20 year operating life assuming a 7% interest rate.  See 1996 reference if you wish to add costs for site access controls, run-on/run-off controls, dust suppression measures, monitoring, or final cover. These costs add between $30.12/ton and $2.05/ton."
F. Other Land Treatment / Storage / Containment,1. Land Treatment,"1.1 On-Site, Non-Hazardous",Cost and Economic Impact Analysis of Listing Hazardous Wastes from the Petroleum Refining Industry (Sept. 1995),$79/ton,1992,1.238,$98/ton,Note: This estimate could be a mixture of treating non-hazardous and hazardous wastes.
F. Other Land Treatment / Storage / Containment,1. Land Treatment,"1.2 On-Site, Hazardous","Memo: Hazardous Waste Identification Rule for Process Wastes: Waste Management Cost Data (Sept. 27, 1996)","1,000 tons/yr: $234.55/ton",1997,1.076,"1,000 tons/yr: $252.38/ton",Note: Annualized cost based on a 20 year operating life assuming a 7% interest rate.
F. Other Land Treatment / Storage / Containment,1. Land Treatment,"1.2 On-Site, Hazardous","Memo: Hazardous Waste Identification Rule for Process Wastes: Waste Management Cost Data (Sept. 27, 1996)","5,000 tons/yr: $123.21/ton",1997,1.076,"5,000 tons/yr: $132.57/ton",Note: Annualized cost based on a 20 year operating life assuming a 7% interest rate.
F. Other Land Treatment / Storage / Containment,1. Land Treatment,"1.2 On-Site, Hazardous","Memo: Hazardous Waste Identification Rule for Process Wastes: Waste Management Cost Data (Sept. 27, 1996)","10,000 tons/yr: $93.37/ton",1997,1.076,"10,000 tons/yr: $100.47/ton",Note: Annualized cost based on a 20 year operating life assuming a 7% interest rate.
F. Other Land Treatment / Storage / Containment,1. Land Treatment,"1.2 On-Site, Hazardous","Memo: Hazardous Waste Identification Rule for Process Wastes: Waste Management Cost Data (Sept. 27, 1996)","25,000 tons/yr: $64.72/ton",1997,1.076,"25,000 tons/yr: $69.64/ton",Note: Annualized cost based on a 20 year operating life assuming a 7% interest rate.
F. Other Land Treatment / Storage / Containment,1. Land Treatment,"1.2 On-Site, Hazardous","Memo: Hazardous Waste Identification Rule for Process Wastes: Waste Management Cost Data (Sept. 27, 1996)","50,000 tons/yr: $49.05/ton",1997,1.076,"50,000 tons/yr: $52.78/ton",Note: Annualized cost based on a 20 year operating life assuming a 7% interest rate.
F. Other Land Treatment / Storage / Containment,1. Land Treatment,1.3 Off-Site,"Memo: Costs for Subtitle D and C Management Units (Sept. 29, 1995)",$71/ton,1992,1.238,$88/ton,Note: This estimate could be a mixture of treating non-hazardous and hazardous wastes.
F. Other Land Treatment / Storage / Containment,2. Surface Impoundment,2.1 Non-Hazardous Wastewater Storage,"Regulatory Impact Analysis of the Supplemental Proposed Rule Applying Phase IV Land Disposal Restrictions to Newly Identified Mineral Processing Wastes, April 15, 1997.",Lined Impoundments: Y = 0.0704x + 1955.1,1995,1.138,Lined Impoundments: Y = 0.0801x + 2224.9,(See Appendix F-2.1 for assumptions)
F. Other Land Treatment / Storage / Containment,2. Surface Impoundment,2.1 Non-Hazardous Wastewater Storage,"Regulatory Impact Analysis of the Supplemental Proposed Rule Applying Phase IV Land Disposal Restrictions to Newly Identified Mineral Processing Wastes, April 15, 1997.",Unlined Surface Impoundments with Groundwater Monitoring: Y = 0.0626x + 16054,1995,1.138,Unlined Surface Impoundments with Groundwater Monitoring: Y = 0.0712x + 18269,(See Appendix F-2.1 for assumptions)
F. Other Land Treatment / Storage / Containment,2. Surface Impoundment,2.1 Non-Hazardous Wastewater Storage,"Regulatory Impact Analysis of the Supplemental Proposed Rule Applying Phase IV Land Disposal Restrictions to Newly Identified Mineral Processing Wastes, April 15, 1997.","Unlined, Unmonitored Surface Impoundments: Y = 0.0491x + 1413.7",1995,1.138,"Unlined, Unmonitored Surface Impoundments: Y = 0.0559x + 1608.8",(See Appendix F-2.1 for assumptions)
F. Other Land Treatment / Storage / Containment,2. Surface Impoundment,2.2 Non-Hazardous Wastewater Treatment,"Memo:  Hazardous Waste Identification Rule for Process Wastes: Waste Management Cost Data (Sept. 27, 1996)","Unlined: 32,000 kgal/yr: $0.21/kgal",1995,1.138,"Unlined: 32,000 kgal/yr: $0.24/kgal","Note:  Annualized cost based on a 20 year operating life assuming a 7% interest rate.  See reference if you wish to add costs for aeration, freeboard, site access controls, groundwater and surface water monitoring, annual dredging, final cover, or leachate collection system."
F. Other Land Treatment / Storage / Containment,2. Surface Impoundment,2.2 Non-Hazardous Wastewater Treatment,"Memo:  Hazardous Waste Identification Rule for Process Wastes: Waste Management Cost Data (Sept. 27, 1996)","Unlined: 160,000 kgal/yr: $0.07/kgal",1995,1.138,"Unlined: 160,000 kgal/yr: $0.08/kgal","Note:  Annualized cost based on a 20 year operating life assuming a 7% interest rate.  See reference if you wish to add costs for aeration, freeboard, site access controls, groundwater and surface water monitoring, annual dredging, final cover, or leachate collection system."
F. Other Land Treatment / Storage / Containment,2. Surface Impoundment,2.2 Non-Hazardous Wastewater Treatment,"Memo:  Hazardous Waste Identification Rule for Process Wastes: Waste Management Cost Data (Sept. 27, 1996)","Unlined: 320,000 kgal/yr: $0.05/kgal",1995,1.138,"Unlined: 320,000 kgal/yr: $0.06/kgal","Note:  Annualized cost based on a 20 year operating life assuming a 7% interest rate.  See reference if you wish to add costs for aeration, freeboard, site access controls, groundwater and surface water monitoring, annual dredging, final cover, or leachate collection system."
F. Other Land Treatment / Storage / Containment,2. Surface Impoundment,2.2 Non-Hazardous Wastewater Treatment,"Memo:  Hazardous Waste Identification Rule for Process Wastes: Waste Management Cost Data (Sept. 27, 1996)","Unlined: 800,000 kgal/yr: $0.04/kgal",1995,1.138,"Unlined: 800,000 kgal/yr: $0.05/kgal","Note:  Annualized cost based on a 20 year operating life assuming a 7% interest rate.  See reference if you wish to add costs for aeration, freeboard, site access controls, groundwater and surface water monitoring, annual dredging, final cover, or leachate collection system."
F. Other Land Treatment / Storage / Containment,2. Surface Impoundment,2.2 Non-Hazardous Wastewater Treatment,"Memo:  Hazardous Waste Identification Rule for Process Wastes: Waste Management Cost Data (Sept. 27, 1996)","Unlined: 1,600,000 kgal/yr: $0.03/kgal",1995,1.138,"Unlined: 1,600,000 kgal/yr: $0.03/kgal","Note:  Annualized cost based on a 20 year operating life assuming a 7% interest rate.  See reference if you wish to add costs for aeration, freeboard, site access controls, groundwater and surface water monitoring, annual dredging, final cover, or leachate collection system."
F. Other Land Treatment / Storage / Containment,2. Surface Impoundment,2.2 Non-Hazardous Wastewater Treatment,"Memo:  Hazardous Waste Identification Rule for Process Wastes: Waste Management Cost Data (Sept. 27, 1996)","Unlined: 2,400,000 kgal/yr: $0.03/kgal",1995,1.138,"Unlined: 2,400,000 kgal/yr: $0.03/kgal","Note:  Annualized cost based on a 20 year operating life assuming a 7% interest rate.  See reference if you wish to add costs for aeration, freeboard, site access controls, groundwater and surface water monitoring, annual dredging, final cover, or leachate collection system."
F. Other Land Treatment / Storage / Containment,2. Surface Impoundment,2.2 Non-Hazardous Wastewater Treatment,"Memo:  Hazardous Waste Identification Rule for Process Wastes: Waste Management Cost Data (Sept. 27, 1996)","Clay-lined: 32,000 kgal/yr: $0.31/kgal",1995,1.138,"Clay-lined: 32,000 kgal/yr: $0.35/kgal","Note:  Annualized cost based on a 20 year operating life assuming a 7% interest rate.  See reference if you wish to add costs for aeration, freeboard, site access controls, groundwater and surface water monitoring, annual dredging, final cover, or leachate collection system."
F. Other Land Treatment / Storage / Containment,2. Surface Impoundment,2.2 Non-Hazardous Wastewater Treatment,"Memo:  Hazardous Waste Identification Rule for Process Wastes: Waste Management Cost Data (Sept. 27, 1996)","Clay-lined: 160,000 kgal/yr: $0.14/kgal",1995,1.138,"Clay-lined: 160,000 kgal/yr: $0.16/kgal","Note:  Annualized cost based on a 20 year operating life assuming a 7% interest rate.  See reference if you wish to add costs for aeration, freeboard, site access controls, groundwater and surface water monitoring, annual dredging, final cover, or leachate collection system."
F. Other Land Treatment / Storage / Containment,2. Surface Impoundment,2.2 Non-Hazardous Wastewater Treatment,"Memo:  Hazardous Waste Identification Rule for Process Wastes: Waste Management Cost Data (Sept. 27, 1996)","Clay-lined: 320,000 kgal/yr: $0.11/kgal",1995,1.138,"Clay-lined: 320,000 kgal/yr: $0.13/kgal","Note:  Annualized cost based on a 20 year operating life assuming a 7% interest rate.  See reference if you wish to add costs for aeration, freeboard, site access controls, groundwater and surface water monitoring, annual dredging, final cover, or leachate collection system."
F. Other Land Treatment / Storage / Containment,2. Surface Impoundment,2.2 Non-Hazardous Wastewater Treatment,"Memo:  Hazardous Waste Identification Rule for Process Wastes: Waste Management Cost Data (Sept. 27, 1996)","Clay-lined: 800,000 kgal/yr: $0.09/kgal",1995,1.138,"Clay-lined: 800,000 kgal/yr: $0.10/kgal","Note:  Annualized cost based on a 20 year operating life assuming a 7% interest rate.  See reference if you wish to add costs for aeration, freeboard, site access controls, groundwater and surface water monitoring, annual dredging, final cover, or leachate collection system."
F. Other Land Treatment / Storage / Containment,2. Surface Impoundment,2.2 Non-Hazardous Wastewater Treatment,"Memo:  Hazardous Waste Identification Rule for Process Wastes: Waste Management Cost Data (Sept. 27, 1996)","Clay-lined: 1,600,000 kgal/yr: $0.08/kgal",1995,1.138,"Clay-lined: 1,600,000 kgal/yr: $0.09/kgal","Note:  Annualized cost based on a 20 year operating life assuming a 7% interest rate.  See reference if you wish to add costs for aeration, freeboard, site access controls, groundwater and surface water monitoring, annual dredging, final cover, or leachate collection system."
F. Other Land Treatment / Storage / Containment,2. Surface Impoundment,2.2 Non-Hazardous Wastewater Treatment,"Memo:  Hazardous Waste Identification Rule for Process Wastes: Waste Management Cost Data (Sept. 27, 1996)","Clay-lined: 2,400,000 kgal/yr: $0.08/kgal",1995,1.138,"Clay-lined: 2,400,000 kgal/yr: $0.09/kgal","Note:  Annualized cost based on a 20 year operating life assuming a 7% interest rate.  See reference if you wish to add costs for aeration, freeboard, site access controls, groundwater and surface water monitoring, annual dredging, final cover, or leachate collection system."
F. Other Land Treatment / Storage / Containment,2. Surface Impoundment,2.2 Non-Hazardous Wastewater Treatment,"Memo:  Hazardous Waste Identification Rule for Process Wastes: Waste Management Cost Data (Sept. 27, 1996)","Synthetic-lined: 32,000 kgal/yr: $0.25/kgal",1995,1.138,"Synthetic-lined: 32,000 kgal/yr: $0.28/kgal","Note:  Annualized cost based on a 20 year operating life assuming a 7% interest rate.  See reference if you wish to add costs for aeration, freeboard, site access controls, groundwater and surface water monitoring, annual dredging, final cover, or leachate collection system."
F. Other Land Treatment / Storage / Containment,2. Surface Impoundment,2.2 Non-Hazardous Wastewater Treatment,"Memo:  Hazardous Waste Identification Rule for Process Wastes: Waste Management Cost Data (Sept. 27, 1996)","Synthetic-lined: 160,000 kgal/yr: $0.10/kgal",1995,1.138,"Synthetic-lined: 160,000 kgal/yr: $0.11/kgal","Note:  Annualized cost based on a 20 year operating life assuming a 7% interest rate.  See reference if you wish to add costs for aeration, freeboard, site access controls, groundwater and surface water monitoring, annual dredging, final cover, or leachate collection system."
F. Other Land Treatment / Storage / Containment,2. Surface Impoundment,2.2 Non-Hazardous Wastewater Treatment,"Memo:  Hazardous Waste Identification Rule for Process Wastes: Waste Management Cost Data (Sept. 27, 1996)","Synthetic-lined: 320,000 kgal/yr: $0.07/kgal",1995,1.138,"Synthetic-lined: 320,000 kgal/yr: $0.08/kgal","Note:  Annualized cost based on a 20 year operating life assuming a 7% interest rate.  See reference if you wish to add costs for aeration, freeboard, site access controls, groundwater and surface water monitoring, annual dredging, final cover, or leachate collection system."
F. Other Land Treatment / Storage / Containment,2. Surface Impoundment,2.2 Non-Hazardous Wastewater Treatment,"Memo:  Hazardous Waste Identification Rule for Process Wastes: Waste Management Cost Data (Sept. 27, 1996)","Synthetic-lined: 800,000 kgal/yr: $0.06/kgal",1995,1.138,"Synthetic-lined: 800,000 kgal/yr: $0.07/kgal","Note:  Annualized cost based on a 20 year operating life assuming a 7% interest rate.  See reference if you wish to add costs for aeration, freeboard, site access controls, groundwater and surface water monitoring, annual dredging, final cover, or leachate collection system."
F. Other Land Treatment / Storage / Containment,2. Surface Impoundment,2.2 Non-Hazardous Wastewater Treatment,"Memo:  Hazardous Waste Identification Rule for Process Wastes: Waste Management Cost Data (Sept. 27, 1996)","Synthetic-lined: 1,600,000 kgal/yr: $0.05/kgal",1995,1.138,"Synthetic-lined: 1,600,000 kgal/yr: $0.06/kgal","Note:  Annualized cost based on a 20 year operating life assuming a 7% interest rate.  See reference if you wish to add costs for aeration, freeboard, site access controls, groundwater and surface water monitoring, annual dredging, final cover, or leachate collection system."
F. Other Land Treatment / Storage / Containment,2. Surface Impoundment,2.2 Non-Hazardous Wastewater Treatment,"Memo:  Hazardous Waste Identification Rule for Process Wastes: Waste Management Cost Data (Sept. 27, 1996)","Synthetic-lined: 2,400,000 kgal/yr: $0.05/kgal",1995,1.138,"Synthetic-lined: 2,400,000 kgal/yr: $0.06/kgal","Note:  Annualized cost based on a 20 year operating life assuming a 7% interest rate.  See reference if you wish to add costs for aeration, freeboard, site access controls, groundwater and surface water monitoring, annual dredging, final cover, or leachate collection system."
F. Other Land Treatment / Storage / Containment,2. Surface Impoundment,2.3 Hazardous (Subtitle C) Treatment,"Memo:  Hazardous Waste Identification Rule for Process Wastes: Waste Management Cost Data (Sept. 27, 1996)","Without aeration: 32,000 kgal/yr: $5.33/kgal",1995,1.138,"Without aeration: 32,000 kgal/yr: $6.07/kgal",Costs include capital and O&M costs as well as closure and post-closure costs as appropriate.  Costs include annual dredging.  Annualized cost based on a 20 year operating life assuming a 7% interest rate. 
F. Other Land Treatment / Storage / Containment,2. Surface Impoundment,2.3 Hazardous (Subtitle C) Treatment,"Memo:  Hazardous Waste Identification Rule for Process Wastes: Waste Management Cost Data (Sept. 27, 1996)","Without aeration: 160,000 kgal/yr: $1.41/kgal",1995,1.138,"Without aeration: 160,000 kgal/yr: $1.60/kgal",Costs include capital and O&M costs as well as closure and post-closure costs as appropriate.  Costs include annual dredging.  Annualized cost based on a 20 year operating life assuming a 7% interest rate. 
F. Other Land Treatment / Storage / Containment,2. Surface Impoundment,2.3 Hazardous (Subtitle C) Treatment,"Memo:  Hazardous Waste Identification Rule for Process Wastes: Waste Management Cost Data (Sept. 27, 1996)","Without aeration: 320,000 kgal/yr: $0.90/kgal",1995,1.138,"Without aeration: 320,000 kgal/yr: $1.02/kgal",Costs include capital and O&M costs as well as closure and post-closure costs as appropriate.  Costs include annual dredging.  Annualized cost based on a 20 year operating life assuming a 7% interest rate. 
F. Other Land Treatment / Storage / Containment,2. Surface Impoundment,2.3 Hazardous (Subtitle C) Treatment,"Memo:  Hazardous Waste Identification Rule for Process Wastes: Waste Management Cost Data (Sept. 27, 1996)","Without aeration: 800,000 kgal/yr: $0.58/kgal",1995,1.138,"Without aeration: 800,000 kgal/yr: $0.66/kgal",Costs include capital and O&M costs as well as closure and post-closure costs as appropriate.  Costs include annual dredging.  Annualized cost based on a 20 year operating life assuming a 7% interest rate. 
F. Other Land Treatment / Storage / Containment,2. Surface Impoundment,2.3 Hazardous (Subtitle C) Treatment,"Memo:  Hazardous Waste Identification Rule for Process Wastes: Waste Management Cost Data (Sept. 27, 1996)","Without aeration: 1,600,000 kgal/yr: $0.49/kgal",1995,1.138,"Without aeration: 1,600,000 kgal/yr: $0.56/kgal",Costs include capital and O&M costs as well as closure and post-closure costs as appropriate.  Costs include annual dredging.  Annualized cost based on a 20 year operating life assuming a 7% interest rate. 
F. Other Land Treatment / Storage / Containment,2. Surface Impoundment,2.3 Hazardous (Subtitle C) Treatment,"Memo:  Hazardous Waste Identification Rule for Process Wastes: Waste Management Cost Data (Sept. 27, 1996)","Without aeration: 2,400,000 kgal/yr: $0.46/kgal",1995,1.138,"Without aeration: 2,400,000 kgal/yr: $0.52/kgal",Costs include capital and O&M costs as well as closure and post-closure costs as appropriate.  Costs include annual dredging.  Annualized cost based on a 20 year operating life assuming a 7% interest rate. 
F. Other Land Treatment / Storage / Containment,2. Surface Impoundment,2.3 Hazardous (Subtitle C) Treatment,"Memo:  Hazardous Waste Identification Rule for Process Wastes: Waste Management Cost Data (Sept. 27, 1996)","With aeration: 32,000 kgal/yr: $5.66/kgal",1995,1.138,"With aeration: 32,000 kgal/yr: $6.44/kgal",Costs include capital and O&M costs as well as closure and post-closure costs as appropriate.  Costs include annual dredging.  Annualized cost based on a 20 year operating life assuming a 7% interest rate. 
F. Other Land Treatment / Storage / Containment,2. Surface Impoundment,2.3 Hazardous (Subtitle C) Treatment,"Memo:  Hazardous Waste Identification Rule for Process Wastes: Waste Management Cost Data (Sept. 27, 1996)","With aeration: 160,000 kgal/yr: $1.49/kgal",1995,1.138,"With aeration: 160,000 kgal/yr: $1.70/kgal",Costs include capital and O&M costs as well as closure and post-closure costs as appropriate.  Costs include annual dredging.  Annualized cost based on a 20 year operating life assuming a 7% interest rate. 
F. Other Land Treatment / Storage / Containment,2. Surface Impoundment,2.3 Hazardous (Subtitle C) Treatment,"Memo:  Hazardous Waste Identification Rule for Process Wastes: Waste Management Cost Data (Sept. 27, 1996)","With aeration: 320,000 kgal/yr: $0.97/kgal",1995,1.138,"With aeration: 320,000 kgal/yr: $1.10/kgal",Costs include capital and O&M costs as well as closure and post-closure costs as appropriate.  Costs include annual dredging.  Annualized cost based on a 20 year operating life assuming a 7% interest rate. 
F. Other Land Treatment / Storage / Containment,2. Surface Impoundment,2.3 Hazardous (Subtitle C) Treatment,"Memo:  Hazardous Waste Identification Rule for Process Wastes: Waste Management Cost Data (Sept. 27, 1996)","With aeration: 800,000 kgal/yr: $0.62/kgal",1995,1.138,"With aeration: 800,000 kgal/yr: $0.71/kgal",Costs include capital and O&M costs as well as closure and post-closure costs as appropriate.  Costs include annual dredging.  Annualized cost based on a 20 year operating life assuming a 7% interest rate. 
F. Other Land Treatment / Storage / Containment,2. Surface Impoundment,2.3 Hazardous (Subtitle C) Treatment,"Memo:  Hazardous Waste Identification Rule for Process Wastes: Waste Management Cost Data (Sept. 27, 1996)","With aeration: 1,600,000 kgal/yr: $0.53/kgal",1995,1.138,"With aeration: 1,600,000 kgal/yr: $0.60/kgal",Costs include capital and O&M costs as well as closure and post-closure costs as appropriate.  Costs include annual dredging.  Annualized cost based on a 20 year operating life assuming a 7% interest rate. 
F. Other Land Treatment / Storage / Containment,2. Surface Impoundment,2.3 Hazardous (Subtitle C) Treatment,"Memo:  Hazardous Waste Identification Rule for Process Wastes: Waste Management Cost Data (Sept. 27, 1996)","With aeration: 2,400,000 kgal/yr: $0.50/kgal ",1995,1.138,"With aeration: 2,400,000 kgal/yr: $0.57/kgal ",Costs include capital and O&M costs as well as closure and post-closure costs as appropriate.  Costs include annual dredging.  Annualized cost based on a 20 year operating life assuming a 7% interest rate. 
F. Other Land Treatment / Storage / Containment,3. Waste Pile,3.1 Non-Hazardous Waste (Subtitle D),"Memo:  Hazardous Waste Identification Rule for Process Wastes: Waste Management Cost Data (Sept. 27, 1996)","Unlined: 1,000 tons/yr: $30.35/ton",1995,1.138,"Unlined: 1,000 tons/yr: $34.54/ton","Note:  Annualized cost based on a 20 year operating life assuming a 7% interest rate.  See reference if you wish to add costs for monitoring, site access controls, run-on/run-off controls, final cover, or dust suppression."
F. Other Land Treatment / Storage / Containment,3. Waste Pile,3.1 Non-Hazardous Waste (Subtitle D),"Memo:  Hazardous Waste Identification Rule for Process Wastes: Waste Management Cost Data (Sept. 27, 1996)","Unlined: 5,000 tons/yr: $9.16/ton",1995,1.138,"Unlined: 5,000 tons/yr: $10.42/ton","Note:  Annualized cost based on a 20 year operating life assuming a 7% interest rate.  See reference if you wish to add costs for monitoring, site access controls, run-on/run-off controls, final cover, or dust suppression."
F. Other Land Treatment / Storage / Containment,3. Waste Pile,3.1 Non-Hazardous Waste (Subtitle D),"Memo:  Hazardous Waste Identification Rule for Process Wastes: Waste Management Cost Data (Sept. 27, 1996)","Unlined: 10,000 tons/yr: $5.47/ton",1995,1.138,"Unlined: 10,000 tons/yr: $6.22/ton","Note:  Annualized cost based on a 20 year operating life assuming a 7% interest rate.  See reference if you wish to add costs for monitoring, site access controls, run-on/run-off controls, final cover, or dust suppression."
F. Other Land Treatment / Storage / Containment,3. Waste Pile,3.1 Non-Hazardous Waste (Subtitle D),"Memo:  Hazardous Waste Identification Rule for Process Wastes: Waste Management Cost Data (Sept. 27, 1996)","Unlined: 25,000 tons/yr: $2.77/ton",1995,1.138,"Unlined: 25,000 tons/yr: $3.15/ton","Note:  Annualized cost based on a 20 year operating life assuming a 7% interest rate.  See reference if you wish to add costs for monitoring, site access controls, run-on/run-off controls, final cover, or dust suppression."
F. Other Land Treatment / Storage / Containment,3. Waste Pile,3.1 Non-Hazardous Waste (Subtitle D),"Memo:  Hazardous Waste Identification Rule for Process Wastes: Waste Management Cost Data (Sept. 27, 1996)","Unlined: 50,000 tons/yr: $1.65/ton ",1995,1.138,"Unlined: 50,000 tons/yr: $1.88/ton ","Note:  Annualized cost based on a 20 year operating life assuming a 7% interest rate.  See reference if you wish to add costs for monitoring, site access controls, run-on/run-off controls, final cover, or dust suppression."
F. Other Land Treatment / Storage / Containment,3. Waste Pile,3.2 Hazardous Waste (Subtitle C),"Memo: Costs for Subtitle D and C Management Units (Sept. 29, 1995)",$15 to $82/ton,1992,1.238,$19 to $102/ton,"Costs include site preparation, run-on and run-off controls, groundwater monitoring wells, a containment system, and other RCRA related costs and fees.  Annualized cost based on a 20 year operating life assuming a 7% interest rate."
F. Other Land Treatment / Storage / Containment,3. Waste Pile,3.2 Hazardous Waste (Subtitle C),"Memo:  Hazardous Waste Identification Rule for Process Wastes: Waste Management Cost Data (Sept. 27, 1996)","1,000 tons/yr: $221.45/ton",1995,1.138,"1,000 tons/yr: $252.01/ton","Note:  Annualized cost based on a 20 year operating life assuming a 7% interest rate.  Includes RCRA pad, containment, and closure requirements."
F. Other Land Treatment / Storage / Containment,3. Waste Pile,3.2 Hazardous Waste (Subtitle C),"Memo:  Hazardous Waste Identification Rule for Process Wastes: Waste Management Cost Data (Sept. 27, 1996)","5,000 tons/yr: $93.91/ton",1995,1.138,"5,000 tons/yr: $106.87/ton","Note:  Annualized cost based on a 20 year operating life assuming a 7% interest rate.  Includes RCRA pad, containment, and closure requirements."
F. Other Land Treatment / Storage / Containment,3. Waste Pile,3.2 Hazardous Waste (Subtitle C),"Memo:  Hazardous Waste Identification Rule for Process Wastes: Waste Management Cost Data (Sept. 27, 1996)","10,000 tons/yr: $64.91/ton",1995,1.138,"10,000 tons/yr: $73.87/ton","Note:  Annualized cost based on a 20 year operating life assuming a 7% interest rate.  Includes RCRA pad, containment, and closure requirements."
F. Other Land Treatment / Storage / Containment,3. Waste Pile,3.2 Hazardous Waste (Subtitle C),"Memo:  Hazardous Waste Identification Rule for Process Wastes: Waste Management Cost Data (Sept. 27, 1996)","25,000 tons/yr: $39.83/ton",1995,1.138,"25,000 tons/yr: $45.33/ton","Note:  Annualized cost based on a 20 year operating life assuming a 7% interest rate.  Includes RCRA pad, containment, and closure requirements."
F. Other Land Treatment / Storage / Containment,3. Waste Pile,3.2 Hazardous Waste (Subtitle C),"Memo:  Hazardous Waste Identification Rule for Process Wastes: Waste Management Cost Data (Sept. 27, 1996)","50,000 tons/yr: $27.53/ton ",1995,1.138,"50,000 tons/yr: $27.53/ton ","Note:  Annualized cost based on a 20 year operating life assuming a 7% interest rate.  Includes RCRA pad, containment, and closure requirements."
F. Other Land Treatment / Storage / Containment,4. Aboveground Storage Tank (AST),4.1 7-Day Storage Tank,"Regulatory Impact Analyses: Phase IV Land Disposal Restrictions to Newly Identified Mineral Processing Wastes (April 15, 1997)","Annual Cost = -4*10-8Q2 +0.1175Q+3,679.5",1995,1.138,"Annual Cost = -4.6*10-8Q2 +0.1337Q+4,187.3","Q = Quantity of material presented for treatment in metric tons per year.  One metric ton equals 1.1023 short tons (english).
Annualized cost based on a 20 year operating life assuming a 7% interest rate. "
F. Other Land Treatment / Storage / Containment,4. Aboveground Storage Tank (AST),4.2 Concrete Pad Secondary Containment,"Evaluate the Economics of Secondary Containment, Chemical Engineering Progress (Sept. 1993)",Capital Cost = 30.054x0.6232,1993,1.216,Capital Cost = 36.55x0.6232,x = Capacity of tank in gallons.
F. Other Land Treatment / Storage / Containment,4. Aboveground Storage Tank (AST),4.3. Earth Diking with Synthetic Lining Secondary Containment,"Evaluate the Economics of Secondary Containment, Chemical Engineering Progress (Sept. 1993)",Capital Cost = 0.8287x0.6588,1993,1.216,Capital Cost = 1.01x0.6588,x = Capacity of tank in gallons.
F. Other Land Treatment / Storage / Containment,4. Aboveground Storage Tank (AST),4.4 Silo,Cost Functions for Alternative CKD Control Technologies Draft July 1996 Report says do not cite or quote,"Capital Cost =0.0811x + 3,959.7",1996,1.105,"Capital Cost =0.0896x + 4,375.5",x = tons/yr
F. Other Land Treatment / Storage / Containment,4. Aboveground Storage Tank (AST),4.5 Chute for Silo/Hopper,Cost Functions for Alternative CKD Control Technologies Draft July 1996 Report says do not cite or quote,Capital Cost =0.3648x + 85.381,1996,1.105,Capital Cost =0.4031x + 94.346,x = tons/yr of cement kiln dust (CKD)
F. Other Land Treatment / Storage / Containment,5. Underground Storage Tank (UST),5.1 Single-Wall UST,Racer 1999,"Capital Cost = 2.5*(gallon capacity) + 23,990",1999,1.025,"Capital Cost = 2.6*(gallon capacity) + 24,590",n/a
F. Other Land Treatment / Storage / Containment,5. Underground Storage Tank (UST),5.1 Single-Wall UST,Racer 1999,"O&M Cost: Gallon Capacity <= 12,000  Cost $342/year",1999,1.025,"O&M Cost: Gallon Capacity <= 12,000 Cost $351/year ",n/a
F. Other Land Treatment / Storage / Containment,5. Underground Storage Tank (UST),5.1 Single-Wall UST,Racer 1999,"O&M Cost: Gallon Capacity 12,001 to 29,999 Cost $564/year",1999,1.025,"O&M Cost: Gallon Capacity 12,001 to 29,999 Cost $578/year",n/a
F. Other Land Treatment / Storage / Containment,5. Underground Storage Tank (UST),5.1 Single-Wall UST,Racer 1999,"O&M Cost: Gallon Capacity >= 30,000 Cost $666/year",1999,1.025,"O&M Cost: Gallon Capacity >= 30,000 Cost $683/year",n/a
F. Other Land Treatment / Storage / Containment,5. Underground Storage Tank (UST),5.2. Double-Wall UST,Racer 1999,"Capital Cost = 2.9*(gallon capacity) + 27,161",1999,1.025,"Capital Cost = 3.0*(gallon capacity) + 27,840",n/a
F. Other Land Treatment / Storage / Containment,5. Underground Storage Tank (UST),5.2. Double-Wall UST,Racer 1999,"O&M Cost: Gallon Capacity <= 12,000  Cost $342/year",1999,1.025,"O&M Cost: Gallon Capacity <= 12,000 Cost $351/year ",n/a
F. Other Land Treatment / Storage / Containment,5. Underground Storage Tank (UST),5.2. Double-Wall UST,Racer 1999,"O&M Cost: Gallon Capacity 12,001 to 29,999 Cost $564/year",1999,1.025,"O&M Cost: Gallon Capacity 12,001 to 29,999 Cost $578/year",n/a
F. Other Land Treatment / Storage / Containment,5. Underground Storage Tank (UST),5.2. Double-Wall UST,Racer 1999,"O&M Cost: Gallon Capacity >= 30,000 Cost $666/year",1999,1.025,"O&M Cost: Gallon Capacity >= 30,000 Cost $683/year",n/a
F. Other Land Treatment / Storage / Containment,5. Underground Storage Tank (UST),5.3. Concrete Vault Secondary Containment,"Evaluate the Economics of Secondary Containment, Chemical Engineering Progress (Sept. 1993)",Capital Cost = 269.74x0.4108,1993,1.216,Capital Cost = 328.00x0.4108,x = Capacity of tank in gallons.  
F. Other Land Treatment / Storage / Containment,5. Underground Storage Tank (UST),5.4. Concrete Vault with Polymer or Resin Based Sealer Secondary Containment,"Evaluate the Economics of Secondary Containment, Chemical Engineering Progress (Sept. 1993)",Capital Cost = 321.93x0.4593,1993,1.216,Capital Cost = 391.47x0.4593,x = Capacity of tank in gallons.  
F. Other Land Treatment / Storage / Containment,5. Underground Storage Tank (UST),5.5. Steel Box Secondary Containment,"Evaluate the Economics of Secondary Containment, Chemical Engineering Progress (Sept. 1993)",Capital Cost = 96.081x0.4654,1993,1.216,Capital Cost = 116.835x0.4654,x = Capacity of tank in gallons.  
F. Other Land Treatment / Storage / Containment,5. Underground Storage Tank (UST),5.6. Synthetic Liner Secondary Containment,"Evaluate the Economics of Secondary Containment, Chemical Engineering Progress (Sept. 1993)",Capital Cost = 12.066x0.5942,1993,1.216,Capital Cost = 14.672x0.5942,x = Capacity of tank in gallons.  
F. Other Land Treatment / Storage / Containment,6. Containers,6.1 55-Gallon Drum,Racer 1999,$103 per 55-gallon drum,1999,1.025,$106 per 55-gallon drum,n/a
F. Other Land Treatment / Storage / Containment,6. Containers,6.2 40-cy Roll-Off Container,Racer 1999,"Purchase: $6,472 per 20 cy roll-off bin.",1999,1.025,"Purchase: $6,634 per 20 cy roll-off bin.",n/a
F. Other Land Treatment / Storage / Containment,6. Containers,6.2 40-cy Roll-Off Container,Racer 1999,Rental:$2 per day + $435 delivery charge,1999,1.025,Rental: $2 per day + $446 delivery charge,n/a
F. Other Land Treatment / Storage / Containment,6. Containers,6.3. Storage and Handling Building,Racer 1999,"Capital Cost = 0.06*(area in square feet)2 + 46.2*(area in square feet) + 4,995",1999,1.025,"Capital Cost = 0.06*(area in square feet)2 + 47.36*(area in square feet) + 5,120",n/a
